bitfinex/quotes_BTCUSD_20250505
["timestamp","ask_amount","ask_price","bid_price","bid_amount"]
[1746454380903,0.60205947,94384.0,94383.0,0.0092909]
[1746454386455,0.60225947,94384.0,94383.0,0.0092909]
[1746454387709,0.60225947,94384.0,94383.0,0.0032909]
[1746454388849,0.60238641,94372.0,94350.0,0.00085818]
[1746454390103,0.60252289,94372.0,94350.0,0.00085818]
[1746454390868,0.60253133,94352.0,94350.0,0.00085818]
[1746454392930,0.58367218,94352.0,94350.0,0.00085818]
[1746454393105,0.57083133,94352.0,94350.0,0.00085818]
[1746454393449,0.60163133,94352.0,94350.0,0.00085818]
[1746454394799,0.57086279,94338.0,94337.0,0.08059003]
[1746454394955,0.55201713,94332.0,94325.0,0.08473185]
[1746454395366,0.57087628,94332.0,94325.0,0.08473185]
[1746454396046,0.57101266,94332.0,94325.0,0.08473185]
[1746454396251,0.57101266,94332.0,94331.0,0.006]
[1746454397769,0.53778839,94332.0,94331.0,0.006]
[1746454398529,0.55398839,94332.0,94331.0,0.006]
[1746454399713,0.56968839,94332.0,94331.0,0.002]
[1746454400124,0.56968839,94332.0,94331.0,0.005]
[1746454400254,0.55398839,94332.0,94331.0,0.005]
[1746454400869,0.56908839,94332.0,94331.0,0.005]
[1746454401764,0.21207783,94305.0,94304.0,0.0162]
[1746454401971,0.21207783,94305.0,94304.0,0.01454085]
[1746454402446,0.21207783,94305.0,94304.0,0.04614085]
[1746454403107,0.21307783,94305.0,94304.0,0.05514085]
[1746454403515,0.21207783,94305.0,94304.0,0.04614085]
[1746454403986,0.34,94329.0,94304.0,0.035604]
[1746454404102,0.21206883,94309.0,94308.0,0.0323]
[1746454405103,0.22266576,94312.0,94309.0,0.0321]
[1746454405317,0.00010829,94468.0,94304.0,0.23168376]
[1746454405318,0.01060164,94325.0,94318.0,0.01060243]
[1746454405551,0.01060119,94329.0,94321.0,0.22864185]
[1746454405552,0.21203522,94324.0,94321.0,0.22864185]
[1746454405764,0.21203522,94324.0,94315.0,0.41585365]
[1746454405765,0.01060175,94324.0,94323.0,0.032]
[1746454405976,0.01060141,94327.0,94326.0,0.01454085]
[1746454406186,0.22263396,94326.0,94324.0,0.01354085]
[1746454406391,0.01060153,94326.0,94325.0,0.0156]
[1746454406814,0.21203286,94325.0,94324.0,0.0151]
[1746454407016,0.21203286,94325.0,94324.0,0.0141]
[1746454407222,0.00013638,94332.0,94326.0,0.01060153]
[1746454407432,0.01060108,94330.0,94323.0,0.21203714]
[1746454407729,0.001,94326.0,94325.0,0.006]
[1746454408348,0.001,94326.0,94325.0,0.02054085]
[1746454408868,0.001,94326.0,94325.0,0.006]
[1746454409266,0.01985915,94326.0,94325.0,0.006]
[1746454409697,0.01985915,94326.0,94311.0,0.21206406]
[1746454409698,0.01060276,94315.0,94314.0,0.03084085]
[1746454410256,0.22266536,94312.0,94311.0,0.03084085]
[1746454410614,0.22266046,94314.0,94312.0,0.01454085]
[1746454410846,0.22266046,94314.0,94312.0,0.02954085]
[1746454411049,0.22266046,94314.0,94313.0,0.01454085]
[1746454413381,0.22266046,94314.0,94312.0,0.006]
[1746454413382,0.21205984,94313.0,94312.0,0.006]
[1746454413589,0.55205984,94313.0,94312.0,0.006]
[1746454413758,0.24151961,94314.0,94300.0,0.00098155]
[1746454413759,0.23094597,94301.0,94300.0,0.00098155]
[1746454413939,0.21208907,94300.0,94299.0,0.04364216]
[1746454414770,0.55208907,94300.0,94299.0,0.04364216]
[1746454415047,0.57108452,94300.0,94299.0,0.04364216]
[1746454415230,0.60188452,94300.0,94299.0,0.04364216]
[1746454416368,0.60188452,94300.0,94288.0,0.0143609]
[1746454416369,0.57096622,94292.0,94288.0,0.0143609]
[1746454417079,0.60366622,94292.0,94288.0,0.0143609]
[1746454417493,0.60366622,94292.0,94291.0,0.005]
[1746454418242,0.57096622,94292.0,94291.0,0.005]
[1746454419228,0.58706622,94292.0,94291.0,0.005]
[1746454419633,0.60316622,94292.0,94291.0,0.005]
[1746454420706,0.56992874,94292.0,94291.0,0.005]
[1746454423106,0.56992874,94292.0,94291.0,0.002]
[1746454423470,0.57192874,94292.0,94291.0,0.002]
[1746454423886,0.55306959,94292.0,94291.0,0.002]
[1746454424084,0.19972874,94292.0,94291.0,0.002]
[1746454424374,0.20172874,94292.0,94291.0,0.002]
[1746454424784,0.19972874,94292.0,94291.0,0.002]
[1746454424987,0.53772874,94292.0,94291.0,0.002]
[1746454425994,0.55211382,94289.0,94288.0,0.0093609]
[1746454426332,0.57097297,94289.0,94288.0,0.0093609]
[1746454426743,0.55211382,94289.0,94288.0,0.0093609]
[1746454426959,0.57097297,94289.0,94288.0,0.0093609]
[1746454428286,0.57097297,94289.0,94288.0,0.0143609]
[1746454428489,0.60297297,94289.0,94288.0,0.0143609]
[1746454429703,0.60297297,94289.0,94288.0,0.0093609]
[1746454433218,0.60297297,94289.0,94288.0,0.0053609]
[1746454434818,0.63764021,94289.0,94288.0,0.0053609]
[1746454435072,0.65649936,94289.0,94288.0,0.0053609]
[1746454435276,0.60297297,94289.0,94288.0,0.0053609]
[1746454437237,0.60497297,94289.0,94288.0,0.0053609]
[1746454437795,0.57297297,94289.0,94288.0,0.0053609]
[1746454438988,0.57097297,94289.0,94288.0,0.0053609]
[1746454440274,0.57101122,94272.0,94271.0,0.0003609]
[1746454440890,0.57101122,94272.0,94271.0,0.0167609]
[1746454441235,0.57101122,94272.0,94271.0,0.0003609]
[1746454442768,0.57101122,94272.0,94271.0,0.0033609]
[1746454445230,0.53776648,94272.0,94271.0,0.0033609]
[1746454452221,0.19776648,94272.0,94271.0,0.0033609]
[1746454452431,0.01060704,94277.0,94273.0,0.04684085]
[1746454452629,0.0001363,94300.0,94277.0,0.01454085]
[1746454452833,0.0106067,94280.0,94279.0,0.01454085]
[1746454453041,0.22274076,94280.0,94279.0,0.04704085]
[1746454454486,0.21211983,94287.0,94285.0,0.01454085]
[1746454454693,0.22272175,94289.0,94287.0,0.01454085]
[1746454454882,0.21209132,94299.0,94295.0,0.01060501]
[1746454455183,0.0001363,94300.0,94299.0,0.22663217]
[1746454455526,0.0001363,94300.0,94299.0,0.25883217]
[1746454456052,0.21205016,94318.0,94299.0,0.25883217]
[1746454456053,0.0165,94344.0,94319.0,0.21204499]
[1746454456305,0.10093185,94348.0,94317.0,0.01060254]
[1746454456306,0.01060186,94323.0,94322.0,0.01454085]
[1746454456511,0.01060186,94323.0,94322.0,0.04554085]
[1746454456720,0.01060321,94311.0,94310.0,0.40525089]
[1746454456925,0.01060321,94311.0,94310.0,0.01454085]
[1746454457348,0.01060321,94311.0,94310.0,0.04644085]
[1746454457723,0.01060321,94311.0,94310.0,0.01454085]
[1746454458564,0.0106031,94312.0,94311.0,0.01454085]
[1746454458819,0.01060198,94322.0,94315.0,0.01060276]
[1746454459027,0.01060198,94322.0,94312.0,0.22746142]
[1746454459028,0.01060254,94317.0,94314.0,0.0314]
[1746454459167,0.22265447,94317.0,94315.0,0.0314]
[1746454459370,0.22265447,94317.0,94316.0,0.0159]
[1746454459569,0.0106022,94320.0,94317.0,0.21205014]
[1746454459778,0.22264116,94323.0,94319.0,0.01060231]
[1746454459979,0.22264394,94321.0,94318.0,0.0154]
[1746454460257,0.01060231,94319.0,94318.0,0.0154]
[1746454460451,0.22264394,94321.0,94319.0,0.0154]
[1746454460574,0.22264394,94321.0,94320.0,0.01454085]
[1746454460973,0.22264905,94319.0,94317.0,0.01454085]
[1746454461385,0.22264394,94321.0,94319.0,0.01454085]
[1746454461793,0.22264866,94319.0,94316.0,0.01454085]
[1746454462034,0.0106022,94320.0,94316.0,0.22659236]
[1746454462225,0.22264689,94320.0,94318.0,0.01454085]
[1746454462387,0.01060231,94319.0,94317.0,0.01454085]
[1746454462591,0.22264907,94319.0,94317.0,0.01454085]
[1746454463055,0.22264907,94319.0,94318.0,0.02254085]
[1746454463509,0.0106022,94320.0,94319.0,0.01454085]
[1746454464181,0.22264866,94319.0,94316.0,0.01454085]
[1746454464365,0.22264866,94319.0,94318.0,0.01454085]
[1746454464366,0.01160231,94319.0,94318.0,0.01454085]
[1746454464923,0.001,94319.0,94318.0,0.01454085]
[1746454465129,0.001,94319.0,94318.0,0.02974085]
[1746454465325,0.21204458,94320.0,94318.0,0.01454085]
[1746454465759,0.21204458,94320.0,94318.0,0.01954085]
[1746454466175,0.21201937,94331.0,94322.0,0.01454085]
[1746454466380,0.01060175,94324.0,94323.0,0.00613433]
[1746454466698,0.01060175,94324.0,94320.0,0.40525089]
[1746454466699,0.01060198,94322.0,94319.0,0.015]
[1746454466860,0.22264062,94323.0,94320.0,0.2120427]
[1746454467041,0.01060186,94323.0,94320.0,0.2120427]
[1746454467239,0.01060186,94323.0,94319.0,0.21204506]
[1746454467240,0.2130441,94320.0,94318.0,0.02]
[1746454467529,0.21304427,94320.0,94318.0,0.02]
[1746454467676,0.21304427,94320.0,94318.0,0.015]
[1746454467854,0.01060186,94323.0,94318.0,0.006]
[1746454468062,0.01060198,94322.0,94319.0,0.21204635]
[1746454468259,0.2226418,94322.0,94320.0,0.01454085]
[1746454468458,0.2226418,94322.0,94318.0,0.006]
[1746454468459,0.21204635,94319.0,94318.0,0.006]
[1746454468886,0.21206629,94311.0,94302.0,0.01060422]
[1746454469047,0.01060332,94310.0,94303.0,0.01060411]
[1746454469246,0.01060332,94310.0,94304.0,0.01454085]
[1746454469449,0.01060332,94310.0,94306.0,0.01454085]
[1746454469786,0.01060422,94302.0,94299.0,0.00045786]
[1746454469985,0.21208907,94300.0,94299.0,0.00045786]
[1746454470389,0.55208907,94300.0,94299.0,0.00045786]
[1746454470593,0.56728907,94300.0,94299.0,0.00045786]
[1746454470795,0.58238907,94300.0,94299.0,0.00045786]
[1746454471262,0.58238907,94300.0,94299.0,0.00845786]
[1746454471633,0.58238907,94300.0,94299.0,0.01245786]
[1746454471836,0.58238907,94300.0,94299.0,0.00445786]
[1746454472026,0.58238907,94300.0,94299.0,0.00045786]
[1746454472227,0.58238907,94300.0,94299.0,0.00545786]
[1746454475065,0.68790936,94300.0,94299.0,0.00545786]
[1746454475310,0.58238907,94300.0,94299.0,0.00545786]
[1746454477288,0.01060884,94261.0,94257.0,0.21100402]
[1746454477505,0.21217573,94262.0,94260.0,0.01454085]
[1746454477681,0.01060895,94260.0,94257.0,0.0001363]
[1746454477877,0.01060861,94263.0,94257.0,0.0001363]
[1746454478082,0.22278504,94262.0,94259.0,0.21218106]
[1746454478279,0.01060884,94261.0,94258.0,0.01454085]
[1746454478694,0.22278661,94261.0,94258.0,0.01454085]
[1746454478888,0.01060884,94261.0,94257.0,0.0001363]
[1746454479091,0.01060895,94260.0,94257.0,0.0001363]
[1746454479316,0.21218269,94259.0,94257.0,0.0001363]
[1746454479516,0.22278991,94260.0,94257.0,0.0001363]
[1746454479743,0.21218219,94259.0,94257.0,0.0001363]
[1746454479905,0.34265225,94258.0,94257.0,0.0071363]
[1746454480086,0.3708,94258.0,94257.0,0.0071363]
[1746454480509,0.34,94258.0,94257.0,0.0221363]
[1746454481354,0.34,94258.0,94257.0,0.0071363]
[1746454481716,0.34,94258.0,94257.0,0.0131363]
[1746454481845,0.34,94258.0,94257.0,0.0211363]
[1746454482304,0.34,94258.0,94257.0,0.0001363]
[1746454482688,0.34,94258.0,94257.0,0.0011363]
[1746454483553,0.356,94258.0,94257.0,0.0011363]
[1746454484085,0.372,94258.0,94257.0,0.0111363]
[1746454484285,0.372,94258.0,94257.0,0.0041363]
[1746454484853,0.341,94258.0,94257.0,0.0041363]
[1746454485063,0.001,94258.0,94257.0,0.0041363]
[1746454486310,0.001,94258.0,94257.0,0.01867715]
[1746454486512,0.001,94258.0,94257.0,0.03467715]
[1746454486513,0.0176363,94258.0,94257.0,0.03467715]
[1746454486704,0.001,94258.0,94257.0,0.03467715]
[1746454487340,0.22277857,94264.0,94261.0,0.01454085]
[1746454487563,0.22278712,94261.0,94257.0,0.23479287]
[1746454487721,0.22278712,94261.0,94258.0,0.21218301]
[1746454488677,0.22278712,94261.0,94257.0,0.23479287]
[1746454488877,0.21215023,94273.0,94269.0,0.2121577]
[1746454489111,0.01060827,94266.0,94263.0,0.21217136]
[1746454489315,0.2227789,94264.0,94261.0,0.21217682]
[1746454489741,0.01663567,94266.0,94262.0,0.01454085]
[1746454490045,0.01663567,94266.0,94264.0,0.01454085]
[1746454490396,0.01663567,94266.0,94265.0,0.01454085]
[1746454490597,0.01663567,94266.0,94265.0,0.22670867]
[1746454491000,0.01663567,94266.0,94265.0,0.25870867]
[1746454491886,0.01663567,94266.0,94263.0,0.21216977]
[1746454492072,0.01663567,94266.0,94264.0,0.22671025]
[1746454492990,0.01060839,94265.0,94262.0,0.001]
[1746454493173,0.21217113,94264.0,94262.0,0.001]
[1746454493463,0.22277704,94265.0,94264.0,0.004]
[1746454494112,0.22277704,94265.0,94259.0,0.22278989]
[1746454494113,0.22277923,94264.0,94260.0,0.01454085]
[1746454494690,0.21217468,94262.0,94260.0,0.01454085]
[1746454494889,0.01763567,94266.0,94262.0,0.01454085]
[1746454495064,0.01763567,94266.0,94265.0,0.01454085]
[1746454495624,0.01763567,94266.0,94265.0,0.22670867]
[1746454495763,0.01763567,94266.0,94265.0,0.01454085]
[1746454495953,0.01663567,94266.0,94265.0,0.22670867]
[1746454496613,0.22276513,94270.0,94267.0,0.01454085]
[1746454496851,0.01060692,94278.0,94271.0,0.01454085]
[1746454497051,0.21215207,94272.0,94271.0,0.01454085]
[1746454497266,0.01060782,94270.0,94268.0,0.01454085]
[1746454497457,0.01060794,94269.0,94267.0,0.01454085]
[1746454498087,0.22276591,94270.0,94267.0,0.22670328]
[1746454498290,0.21214266,94277.0,94273.0,0.21214891]
[1746454498493,0.21214982,94273.0,94270.0,0.01454085]
[1746454498645,0.01060805,94268.0,94266.0,0.01454085]
[1746454498851,0.22276658,94270.0,94266.0,0.226706]
[1746454499126,0.21214398,94276.0,94271.0,0.02514856]
[1746454499331,0.21214306,94276.0,94272.0,0.21215207]
[1746454499545,0.22275021,94276.0,94269.0,0.02514879]
[1746454499723,0.22274968,94277.0,94271.0,0.01454085]
[1746454499895,0.01060704,94277.0,94271.0,0.03601017]
[1746454500098,0.22275332,94275.0,94271.0,0.01854085]
[1746454500307,0.01060614,94285.0,94282.0,0.01454085]
[1746454500662,0.01060614,94285.0,94281.0,0.01060659]
[1746454500663,0.01060647,94282.0,94276.0,0.01454085]
[1746454500855,0.22274089,94280.0,94277.0,0.01454085]
[1746454501304,0.23937431,94280.0,94276.0,0.23729044]
[1746454501493,0.01060681,94279.0,94276.0,0.025148]
[1746454501697,0.23937448,94280.0,94278.0,0.01454085]
[1746454501897,0.01663342,94280.0,94278.0,0.01454085]
[1746454502612,0.01663342,94280.0,94279.0,0.22667716]
[1746454504574,0.01663342,94280.0,94279.0,0.23067716]
[1746454505025,1.14477236,94337.0,94301.0,0.01454085]
[1746454505026,0.0164,94312.0,94301.0,0.01454085]
[1746454505190,0.21208457,94302.0,94301.0,0.01454085]
[1746454505393,0.21209345,94299.0,94297.0,0.01454085]
[1746454505602,0.21209357,94298.0,94297.0,0.01454085]
[1746454505758,0.01060445,94300.0,94296.0,0.0106049]
[1746454505960,0.01060445,94300.0,94297.0,0.01454085]
[1746454506163,0.21209357,94298.0,94297.0,0.01454085]
[1746454506826,0.22856325,94298.0,94297.0,0.01454085]
[1746454507190,0.21209299,94299.0,94295.0,0.22664116]
[1746454507191,0.22270081,94297.0,94295.0,0.22664116]
[1746454507384,0.21209807,94296.0,94295.0,0.01454085]
[1746454507646,0.0106049,94296.0,94295.0,0.01454085]
[1746454508287,0.22269849,94298.0,94295.0,0.22663913]
[1746454508709,0.22269849,94298.0,94291.0,0.21210885]
[1746454508710,0.01060524,94293.0,94290.0,0.01454085]
[1746454508955,0.22271183,94293.0,94290.0,0.22665037]
[1746454509133,0.01060524,94293.0,94292.0,0.01454085]
[1746454510070,0.21210932,94291.0,94290.0,0.01454085]
[1746454510218,0.01060602,94286.0,94284.0,0.01454085]
[1746454510420,0.21212019,94287.0,94284.0,0.01454085]
[1746454510622,0.01060625,94284.0,94281.0,0.01454085]
[1746454510822,0.01060625,94284.0,94280.0,0.4]
[1746454510823,0.21213181,94281.0,94280.0,0.4]
[1746454511225,0.21213181,94281.0,94280.0,0.01454085]
[1746454511490,0.01060715,94276.0,94272.0,0.414]
[1746454511660,0.01060715,94276.0,94255.0,0.06463619]
[1746454511661,0.21214756,94274.0,94256.0,0.21218677]
[1746454511841,0.21214756,94274.0,94260.0,0.22278792]
[1746454512038,0.21214756,94274.0,94261.0,0.01454085]
[1746454512238,0.24384756,94274.0,94257.0,0.4]
[1746454512742,0.24384756,94274.0,94260.0,0.41585984]
[1746454512945,0.01060872,94262.0,94258.0,0.22279067]
[1746454513148,0.01060872,94262.0,94255.0,0.0752457]
[1746454513149,0.21218679,94257.0,94255.0,0.46463619]
[1746454513552,0.22882289,94257.0,94255.0,0.46463619]
[1746454513757,0.22882289,94257.0,94256.0,0.01454085]
[1746454513951,0.22882289,94257.0,94255.0,0.46463619]
[1746454514158,0.23956902,94257.0,94255.0,0.01454085]
[1746454514634,0.21219706,94253.0,94251.0,0.402]
[1746454515194,0.21219706,94253.0,94252.0,0.01454085]
[1746454515955,0.21219706,94253.0,94251.0,0.01]
[1746454516155,0.0159,94252.0,94251.0,0.01]
[1746454516360,0.03365258,94252.0,94251.0,0.007]
[1746454517989,0.21219706,94253.0,94251.0,0.007]
[1746454518195,0.0026527,94252.0,94251.0,0.002]
[1746454518695,0.3426527,94252.0,94251.0,0.002]
[1746454518902,0.34,94252.0,94251.0,0.002]
[1746454519437,0.35663692,94252.0,94251.0,0.002]
[1746454521059,0.38833692,94252.0,94251.0,0.002]
[1746454521733,0.38833692,94252.0,94251.0,0.005]
[1746454522335,0.38833692,94252.0,94251.0,0.002]
[1746454522813,0.38833692,94252.0,94251.0,0.004]
[1746454524287,0.63414212,94232.0,94231.0,0.002]
[1746454525096,0.58414212,94232.0,94231.0,0.002]
[1746454526358,0.24414212,94232.0,94231.0,0.002]
[1746454526566,0.01061492,94207.0,94204.0,0.01454085]
[1746454526767,0.01061492,94207.0,94201.0,0.01061559]
[1746454526768,0.21231197,94201.0,94200.0,0.01458085]
[1746454527201,0.01061526,94204.0,94200.0,0.01458085]
[1746454527400,0.21932098,94204.0,94202.0,0.01454085]
[1746454527599,0.21932098,94204.0,94200.0,0.01458085]
[1746454527600,0.21231039,94202.0,94200.0,0.01458085]
[1746454527812,0.21231039,94202.0,94200.0,0.01503786]
[1746454528020,0.01061537,94203.0,94200.0,0.01503786]
[1746454528248,0.22291896,94205.0,94200.0,0.6273513]
[1746454528395,0.21230971,94202.0,94200.0,0.40049701]
[1746454528601,0.21231197,94201.0,94200.0,0.41503786]
[1746454529202,0.21231197,94201.0,94200.0,0.02103786]
[1746454529521,0.22895551,94201.0,94200.0,0.02103786]
[1746454529685,0.22895551,94201.0,94200.0,0.01503786]
[1746454530252,0.22895551,94201.0,94200.0,0.02103786]
[1746454530898,0.22895551,94201.0,94200.0,0.01249701]
[1746454531075,0.22895551,94201.0,94200.0,0.02703786]
[1746454531267,0.22895551,94201.0,94200.0,0.42703786]
[1746454531944,0.01664354,94201.0,94200.0,0.42103786]
[1746454532131,0.22895551,94201.0,94200.0,0.45233786]
[1746454532351,0.01664354,94201.0,94200.0,0.67065208]
[1746454533608,0.01664354,94201.0,94200.0,0.66465208]
[1746454534617,2.65216508,94263.0,94200.0,0.66465208]
[1746454534618,0.01061221,94231.0,94222.0,0.0155]
[1746454534786,0.001,94252.0,94226.0,0.01454085]
[1746454534787,0.22286485,94228.0,94226.0,0.01454085]
[1746454534989,0.22286485,94228.0,94227.0,0.01454085]
[1746454536185,0.21226915,94220.0,94219.0,0.41454085]
[1746454537008,0.21226915,94220.0,94219.0,0.01454085]
[1746454537723,0.21228492,94213.0,94212.0,0.4]
[1746454538270,0.2123007,94206.0,94205.0,0.41454085]
[1746454538634,0.2123007,94206.0,94205.0,0.4]
[1746454539281,0.21231197,94201.0,94200.0,0.01503786]
[1746454540490,0.01061537,94203.0,94202.0,0.01454085]
[1746454540848,0.02725789,94206.0,94205.0,0.2570438]
[1746454540849,0.01664286,94206.0,94205.0,0.2570438]
[1746454541368,0.01061244,94229.0,94221.0,0.01454085]
[1746454541545,0.02725319,94233.0,94226.0,0.01454085]
[1746454541762,0.02725319,94233.0,94232.0,0.25818297]
[1746454541763,0.0166412,94233.0,94232.0,0.25818297]
[1746454541887,0.01061041,94247.0,94238.0,0.01454085]
[1746454542081,0.01061041,94247.0,94240.0,0.01454085]
[1746454542082,0.01663781,94242.0,94240.0,0.01454085]
[1746454542285,0.01663781,94242.0,94241.0,0.0315]
[1746454542488,0.01061075,94244.0,94242.0,0.01454085]
[1746454542696,0.22282617,94244.0,94242.0,0.01666282]
[1746454542913,0.0106103,94248.0,94246.0,0.01454085]
[1746454543110,0.01061007,94250.0,94249.0,0.01454085]
[1746454543111,0.00013682,94250.0,94249.0,0.01454085]
[1746454543353,0.00013682,94250.0,94249.0,0.01666261]
[1746454543553,0.01074689,94250.0,94246.0,0.01454085]
[1746454543752,0.22294951,94250.0,94248.0,0.01454085]
[1746454544003,0.01074689,94250.0,94247.0,0.22674888]
[1746454544220,0.00013682,94250.0,94249.0,0.04524085]
[1746454545270,0.00013682,94250.0,94249.0,0.41454085]
[1746454545460,0.21233841,94250.0,94249.0,0.41454085]
[1746454546020,0.01061052,94246.0,94243.0,0.22675745]
[1746454546225,0.22281465,94249.0,94247.0,0.01454085]
[1746454546439,0.22281465,94249.0,94245.0,0.01454085]
[1746454546808,0.00013682,94250.0,94249.0,0.01454085]
[1746454546985,0.00013682,94250.0,94249.0,0.01666264]
[1746454547188,0.00013682,94250.0,94249.0,0.04936264]
[1746454547412,0.00013682,94250.0,94249.0,0.04836264]
[1746454548176,0.00013682,94250.0,94249.0,0.44836264]
[1746454548374,0.00013682,94250.0,94249.0,0.44624085]
[1746454548636,0.00013682,94250.0,94249.0,0.44724085]
[1746454549622,0.00013682,94250.0,94249.0,0.45124085]
[1746454550270,0.00013682,94250.0,94249.0,0.44724085]
[1746454550669,0.00013682,94250.0,94249.0,0.45324085]
[1746454551045,0.00013682,94250.0,94249.0,0.45724085]
[1746454551256,0.00013682,94250.0,94249.0,0.45324085]
[1746454551799,0.00013682,94250.0,94249.0,0.45124085]
[1746454552748,0.00013682,94250.0,94249.0,0.41954085]
[1746454553025,0.21220145,94251.0,94249.0,0.406]
[1746454553276,0.21220145,94251.0,94250.0,0.01454085]
[1746454553697,0.21220145,94251.0,94249.0,0.006]
[1746454553896,0.21220145,94251.0,94249.0,0.001]
[1746454554101,0.21220145,94251.0,94249.0,0.01]
[1746454554305,0.21220145,94251.0,94250.0,0.01454085]
[1746454554741,0.21220145,94251.0,94249.0,0.001]
[1746454554872,0.21220145,94251.0,94250.0,0.004]
[1746454555477,0.21220145,94251.0,94249.0,0.001]
[1746454556203,0.21220145,94251.0,94250.0,0.01454085]
[1746454556577,0.3718,94250.0,94249.0,0.001]
[1746454557170,0.3718,94250.0,94249.0,0.005]
[1746454557512,0.3718,94250.0,94249.0,0.001]
[1746454558543,0.3718,94250.0,94226.0,0.01666316]
[1746454558544,0.01061244,94229.0,94226.0,0.01066316]
[1746454558747,0.21225113,94228.0,94226.0,0.00899786]
[1746454558946,0.21224743,94230.0,94226.0,0.00899786]
[1746454558947,0.22285976,94230.0,94226.0,0.00899786]
[1746454559164,0.22285976,94230.0,94228.0,0.4]
[1746454559404,0.01061221,94231.0,94228.0,0.4]
[1746454559629,0.01663898,94230.0,94228.0,0.61225102]
[1746454559836,0.01663898,94230.0,94229.0,0.00212236]
[1746454560038,0.21221131,94246.0,94234.0,0.01061188]
[1746454560039,0.01061064,94245.0,94234.0,0.01061188]
[1746454560248,0.22283316,94241.0,94238.0,0.21222861]
[1746454560450,0.01061109,94241.0,94240.0,0.01454085]
[1746454560673,0.22283346,94241.0,94239.0,0.01454085]
[1746454560888,0.01061109,94241.0,94239.0,0.01454085]
[1746454561094,0.222831,94242.0,94240.0,0.41454085]
[1746454561714,0.222831,94242.0,94240.0,0.4]
[1746454562128,0.222831,94242.0,94239.0,0.002]
[1746454562129,0.17897211,94240.0,94239.0,0.002]
[1746454562323,0.01663846,94244.0,94243.0,0.01454085]
[1746454563768,0.01663846,94244.0,94243.0,0.01666279]
[1746454564148,0.01663846,94244.0,94243.0,0.41666279]
[1746454564476,0.01663846,94244.0,94243.0,0.39454085]
[1746454565965,0.01663846,94244.0,94243.0,0.39554085]
[1746454566166,0.01663846,94244.0,94243.0,0.4328]
[1746454566401,0.01663846,94244.0,94243.0,0.41554085]
[1746454566653,0.21221018,94247.0,94243.0,0.41954085]
[1746454566654,0.22282059,94247.0,94243.0,0.41954085]
[1746454567114,0.22282059,94247.0,94245.0,0.41454085]
[1746454567341,0.21221059,94246.0,94245.0,0.41454085]
[1746454567565,0.01061041,94247.0,94245.0,0.41454085]
[1746454567794,0.22281943,94247.0,94246.0,0.01454085]
[1746454568276,0.21220609,94248.0,94247.0,0.01454085]
[1746454568672,0.21220166,94250.0,94248.0,0.01454085]
[1746454568949,0.21220384,94249.0,94248.0,0.01454085]
[1746454569155,0.22281168,94250.0,94247.0,0.01454085]
[1746454569368,0.21220521,94249.0,94247.0,0.01454085]
[1746454569545,0.21220609,94248.0,94247.0,0.01454085]
[1746454570132,0.01663607,94250.0,94247.0,0.41454085]
[1746454570328,0.02724614,94250.0,94247.0,0.41454085]
[1746454570536,0.21220498,94249.0,94248.0,0.01454085]
[1746454570734,0.21220498,94249.0,94247.0,0.4]
[1746454570735,0.21220609,94248.0,94247.0,0.4]
[1746454571029,0.21223311,94236.0,94235.0,0.4]
[1746454571750,0.22886987,94236.0,94235.0,0.4]
[1746454572187,0.21223762,94234.0,94233.0,0.41454085]
[1746454572419,0.21223762,94234.0,94233.0,0.4]
[1746454573063,0.22733762,94234.0,94233.0,0.4]
[1746454573267,0.21225338,94227.0,94222.0,0.4]
[1746454573482,0.21225338,94227.0,94223.0,0.01454085]
[1746454573681,0.21225338,94227.0,94222.0,0.4]
[1746454574094,0.21225338,94227.0,94221.0,0.414]
[1746454574628,0.22725338,94227.0,94213.0,0.4]
[1746454574883,0.58325338,94227.0,94213.0,0.4]
[1746454575124,0.58325338,94227.0,94226.0,0.00345701]
[1746454575361,0.68877367,94227.0,94226.0,0.00945701]
[1746454575607,0.58325338,94227.0,94226.0,0.00945701]
[1746454575882,0.58325338,94227.0,94226.0,0.00245701]
[1746454576545,0.21231197,94201.0,94200.0,4e-05]
[1746454576747,0.21231197,94201.0,94200.0,0.00017682]
[1746454576990,0.55231197,94201.0,94200.0,0.00017682]
[1746454577473,0.58351197,94201.0,94200.0,0.00017682]
[1746454578123,0.58351197,94201.0,94200.0,0.00417682]
[1746454578337,0.58351197,94201.0,94200.0,0.00517682]
[1746454578548,0.55231197,94201.0,94200.0,0.00417682]
[1746454578722,0.55231197,94201.0,94200.0,0.00017682]
[1746454579677,0.21231197,94201.0,94200.0,0.00017682]
[1746454579885,0.22895652,94201.0,94200.0,0.00017682]
[1746454580276,0.23095652,94201.0,94200.0,0.00017682]
[1746454581721,0.01864455,94201.0,94200.0,0.00017682]
[1746454582149,0.01864455,94201.0,94200.0,0.41471767]
[1746454582775,0.01864455,94201.0,94200.0,0.40771767]
[1746454583713,0.01664455,94201.0,94200.0,0.40771767]
[1746454584330,0.19668596,94202.0,94201.0,0.01454085]
[1746454584532,0.22292533,94203.0,94201.0,0.01454085]
[1746454584892,0.42449007,94231.0,94197.0,0.22606687]
[1746454584893,1.78069072,94200.0,94197.0,0.0137464]
[1746454585185,0.21231682,94199.0,94197.0,0.01385313]
[1746454586095,0.21231682,94199.0,94198.0,0.4]
[1746454586625,0.21231682,94199.0,94198.0,0.41454085]
[1746454587034,1.56837518,94200.0,94199.0,0.01454085]
[1746454588041,1.55775947,94200.0,94199.0,0.41454085]
[1746454588470,1.55775947,94200.0,94199.0,0.41754085]
[1746454588715,1.55775947,94200.0,94199.0,0.44864085]
[1746454588920,1.55775947,94200.0,94199.0,0.41754085]
[1746454589765,1.55775947,94200.0,94199.0,0.42354085]
[1746454589955,1.55775947,94200.0,94199.0,0.63585732]
[1746454591602,1.55775947,94200.0,94199.0,0.66665732]
[1746454593042,1.55775947,94200.0,94199.0,0.63585732]
[1746454593669,1.55775947,94200.0,94199.0,0.66765732]
[1746454595053,1.55775947,94200.0,94199.0,0.63585732]
[1746454595686,1.55775947,94200.0,94199.0,0.66765732]
[1746454597304,1.55775947,94200.0,94199.0,1.42165732]
[1746454597506,1.32342178,94200.0,94199.0,1.42165732]
[1746454597709,1.18332134,94200.0,94199.0,1.42165732]
[1746454597835,1.03887292,94200.0,94199.0,1.42165732]
[1746454598040,0.76610444,94200.0,94199.0,1.42265732]
[1746454598243,0.27211168,94200.0,94199.0,1.37015732]
[1746454598476,0.0106112,94240.0,94236.0,0.21223089]
[1746454598678,0.01061109,94241.0,94239.0,0.01454085]
[1746454599214,0.01061143,94238.0,94236.0,0.01454085]
[1746454599379,0.2122242,94240.0,94238.0,0.01454085]
[1746454599614,0.01061086,94243.0,94240.0,0.01454085]
[1746454599789,0.01061086,94243.0,94234.0,0.00754085]
[1746454600050,0.01061131,94239.0,94237.0,0.21223073]